bitfinex/quotes_BTCUSD_20250512
["timestamp","ask_amount","ask_price","bid_price","bid_amount"]
[1747015595929,0.13676426,104140.0,104130.0,2.33801531]
[1747015596432,0.14636671,104140.0,104130.0,2.33901531]
[1747015596658,0.14636589,104140.0,104130.0,2.33901531]
[1747015596887,0.14636589,104140.0,104130.0,2.34001531]
[1747015597368,0.42680089,104150.0,104140.0,0.52244577]
[1747015597590,0.42680089,104150.0,104140.0,3.34350037]
[1747015597591,0.04040484,104150.0,104140.0,3.34350037]
[1747015597793,0.04040484,104150.0,104140.0,3.31849356]
[1747015598008,0.03080331,104150.0,104140.0,3.32809537]
[1747015598219,0.04040475,104150.0,104140.0,3.31849356]
[1747015598429,0.23243547,104150.0,104140.0,3.02744874]
[1747015598645,0.23243547,104150.0,104140.0,2.53737574]
[1747015598853,0.23343547,104150.0,104140.0,2.54697773]
[1747015599364,0.04140475,104150.0,104140.0,2.55657954]
[1747015600011,0.02220196,104150.0,104140.0,2.55657954]
[1747015600224,0.0318034,104150.0,104140.0,2.55657954]
[1747015600440,0.003,104150.0,104140.0,2.55657954]
[1747015600663,0.003,104150.0,104140.0,2.89652154]
[1747015600870,0.003,104150.0,104140.0,2.55652154]
[1747015601656,0.002,104150.0,104140.0,2.55652154]
[1747015602084,0.002,104150.0,104140.0,2.63752154]
[1747015602520,0.02120168,104150.0,104140.0,2.39243384]
[1747015602710,0.02120159,104150.0,104140.0,2.73543384]
[1747015603041,0.04040419,104150.0,104140.0,2.72583203]
[1747015603245,0.05000572,104150.0,104140.0,2.73643393]
[1747015603447,0.23243574,104150.0,104140.0,2.72683203]
[1747015603587,0.23243574,104150.0,104140.0,2.26035673]
[1747015604028,0.23243574,104150.0,104140.0,2.26235673]
[1747015604479,0.23243574,104150.0,104140.0,2.27195863]
[1747015604634,0.22283485,104150.0,104140.0,2.24315284]
[1747015604844,0.22283485,104150.0,104140.0,1.95830791]
[1747015605049,0.22283485,104150.0,104140.0,1.87830791]
[1747015605246,0.22283485,104150.0,104140.0,1.86870592]
[1747015605501,0.22283485,104150.0,104140.0,1.442172]
[1747015605702,0.20363225,104150.0,104140.0,1.4041067]
[1747015605935,0.20363225,104150.0,104140.0,1.14183403]
[1747015606133,0.20363225,104150.0,104140.0,1.17643866]
[1747015606336,0.20363225,104150.0,104140.0,1.02899715]
[1747015606520,0.19403072,104150.0,104140.0,1.0163947]
[1747015606718,0.19403072,104150.0,104140.0,1.0153947]
[1747015606926,0.002,104150.0,104140.0,1.1786363]
[1747015607129,0.03080339,104150.0,104140.0,1.19884019]
[1747015607338,0.03080339,104150.0,104140.0,1.21313217]
[1747015607542,0.0500059,104150.0,104140.0,1.20353036]
[1747015607742,0.04040511,104150.0,104140.0,1.20353036]
[1747015607953,0.05000664,104150.0,104140.0,1.22273416]
[1747015608199,0.05000664,104150.0,104140.0,1.21313235]
[1747015608200,0.23243629,104150.0,104140.0,1.21313235]
[1747015608614,0.02120214,104150.0,104140.0,1.54682186]
[1747015608790,0.02120214,104150.0,104140.0,1.30273416]
[1747015608995,0.04040419,104150.0,104140.0,1.30273416]
[1747015609198,0.05000563,104150.0,104140.0,1.39858846]
[1747015609422,0.05000646,104150.0,104140.0,1.39858846]
[1747015609975,0.03080349,104150.0,104140.0,1.39858846]
[1747015610169,0.04040493,104150.0,104140.0,1.39858846]
[1747015611016,0.03080349,104150.0,104140.0,1.39858846]
[1747015611352,0.02120159,104150.0,104140.0,1.58267616]
[1747015611563,0.03080266,104150.0,104140.0,1.58267616]
[1747015611946,0.02120159,104150.0,104140.0,1.58267616]
[1747015612522,0.002,104150.0,104140.0,1.58267616]
[1747015612913,0.02120159,104150.0,104140.0,1.58267616]
[1747015613333,0.002,104150.0,104140.0,1.58267616]
[1747015613541,1.38592382,104170.0,104150.0,0.52242787]
[1747015613743,0.01920039,104160.0,104150.0,0.65008236]
[1747015613964,0.22081319,104160.0,104150.0,3.40481547]
[1747015614409,0.22081319,104160.0,104150.0,3.42481547]
[1747015614835,0.21169711,104160.0,104150.0,3.43791087]
[1747015615431,0.20209687,104160.0,104150.0,2.258218]
[1747015615640,0.20309687,104160.0,104150.0,1.70523344]
[1747015615848,0.20409687,104160.0,104150.0,1.5997777]
[1747015616053,0.20409687,104160.0,104150.0,1.1585227]
[1747015616492,0.23479687,104160.0,104150.0,1.1385227]
[1747015616703,0.20409687,104160.0,104150.0,1.0420097]
[1747015617529,0.23509687,104160.0,104150.0,0.7906697]
[1747015617954,0.23509687,104160.0,104150.0,0.5840877]
[1747015618182,0.20164255,104150.0,104140.0,0.34]
[1747015618325,0.20164255,104150.0,104140.0,1.0580827]
[1747015619371,0.20164255,104150.0,104140.0,1.0590827]
[1747015619718,0.20164255,104150.0,104140.0,1.06968515]
[1747015619939,0.20164255,104150.0,104140.0,1.08538515]
[1747015620781,0.20164255,104150.0,104140.0,1.09971]
[1747015620983,0.2112438,104150.0,104140.0,1.25334933]
[1747015621189,0.01920168,104150.0,104140.0,1.39380952]
[1747015621366,0.01920168,104150.0,104140.0,1.63789722]
[1747015621610,0.0096007,104150.0,104140.0,1.63789722]
[1747015622009,0.01920159,104150.0,104140.0,1.63789722]
[1747015622240,0.01920159,104150.0,104140.0,1.39380952]
[1747015622448,0.0384041,104150.0,104140.0,1.39380952]
[1747015624042,0.04800554,104150.0,104140.0,1.34380952]
[1747015624258,0.03840484,104150.0,104140.0,1.34380952]
[1747015625130,0.0288034,104150.0,104140.0,1.34380952]
[1747015625577,0.03840484,104150.0,104140.0,1.39380952]
[1747015627267,0.0288034,104150.0,104140.0,1.39380952]
[1747015627708,0.04800637,104150.0,104140.0,1.39380952]
[1747015628170,0.0288034,104150.0,104140.0,1.39380952]
[1747015628436,0.03840484,104150.0,104140.0,1.39380952]
[1747015628672,0.00960089,104150.0,104140.0,1.39380952]
[1747015628914,0.03840475,104150.0,104140.0,1.39380952]
[1747015629162,0.00960089,104150.0,104140.0,1.39380952]
[1747015629383,0.21169729,104160.0,104150.0,0.52782735]
[1747015629593,0.21169729,104160.0,104150.0,3.97909605]
[1747015629804,0.21169729,104160.0,104150.0,4.22318375]
[1747015630238,0.21169729,104160.0,104150.0,4.24928482]
[1747015630457,0.21169729,104160.0,104150.0,4.23968375]
[1747015630677,0.03028489,104160.0,104150.0,4.2588858]
[1747015630898,0.03028415,104160.0,104150.0,4.2588858]
[1747015631350,0.03988458,104160.0,104150.0,4.2588858]
[1747015631487,0.03128415,104160.0,104150.0,4.3547401]
[1747015631686,0.02168391,104160.0,104150.0,4.3547401]
[1747015632185,0.03128415,104160.0,104150.0,4.3547401]
[1747015632560,0.03128415,104160.0,104150.0,4.4047401]
[1747015633001,0.02928415,104160.0,104150.0,4.4047401]
[1747015633243,0.00048407,104160.0,104150.0,4.4057401]
[1747015633662,0.01008403,104160.0,104150.0,4.4057401]
[1747015633874,0.01968418,104160.0,104150.0,4.4067401]
[1747015635041,0.01968418,104160.0,104150.0,4.15460618]
[1747015635302,0.01968418,104160.0,104150.0,4.30823075]
[1747015635665,0.01008403,104160.0,104150.0,4.32743353]
[1747015636089,0.01968427,104160.0,104150.0,4.32743353]
[1747015636493,0.22129707,104160.0,104150.0,4.31093362]
[1747015636697,0.23089768,104160.0,104150.0,2.47212671]
[1747015636911,0.22129772,104160.0,104150.0,2.45292448]
[1747015637513,0.22129772,104160.0,104150.0,2.21843785]
[1747015637761,0.22129772,104160.0,104150.0,1.71948158]
[1747015637977,0.22129772,104160.0,104150.0,1.73868381]
[1747015638127,0.21169748,104160.0,104150.0,1.71948158]
[1747015638343,0.21169748,104160.0,104150.0,1.7386839]
[1747015638568,0.21169748,104160.0,104150.0,1.65988023]
[1747015638773,0.21169748,104160.0,104150.0,1.69345285]
[1747015639007,0.01968483,104160.0,104150.0,1.70305374]
[1747015639185,0.01968483,104160.0,104150.0,1.94714144]
[1747015639766,0.21169711,104160.0,104150.0,1.68385169]
[1747015639963,0.21169711,104160.0,104150.0,1.7030542]
[1747015640162,0.21169711,104160.0,104150.0,1.71265518]
[1747015641467,0.21169711,104160.0,104150.0,1.71265527]
[1747015642846,0.21169711,104160.0,104150.0,1.71265472]
[1747015645922,0.21169711,104160.0,104150.0,1.69345267]
[1747015646152,0.21169711,104160.0,104150.0,1.67908274]
[1747015646321,0.21169711,104160.0,104150.0,1.68868381]
[1747015646514,0.21169711,104160.0,104150.0,1.69828479]
[1747015646720,0.21169711,104160.0,104150.0,1.95807249]
[1747015647032,0.0292847,104160.0,104150.0,1.97357194]
[1747015647296,0.01008403,104160.0,104150.0,1.97357194]
[1747015647546,0.00048407,104160.0,104150.0,2.06942624]
[1747015647770,0.01968391,104160.0,104150.0,2.06942624]
[1747015647998,0.01968381,104160.0,104150.0,2.06942624]
[1747015648855,0.01008385,104160.0,104150.0,2.06942624]
[1747015649329,0.00048407,104160.0,104150.0,2.06942624]
[1747015649782,0.01008385,104160.0,104150.0,2.06942624]
[1747015652572,0.00048407,104160.0,104150.0,2.06942624]
[1747015652797,0.00048407,104160.0,104150.0,2.08379069]
[1747015653016,0.02928414,104160.0,104150.0,2.08379069]
[1747015653231,0.01008394,104160.0,104150.0,2.08379069]
[1747015653689,0.23089694,104160.0,104150.0,1.77970005]
[1747015653937,0.22789748,104160.0,104150.0,1.60687288]
[1747015654168,0.22789748,104160.0,104150.0,1.78930139]
[1747015654169,0.21169748,104160.0,104150.0,1.78930139]
[1747015654403,0.21169748,104160.0,104150.0,1.80520139]
[1747015654660,0.0196852,104160.0,104150.0,2.07518998]
[1747015657587,0.01008431,104160.0,104150.0,2.07518998]
[1747015657896,0.0292847,104160.0,104150.0,2.07518998]
[1747015658099,0.03888522,104160.0,104150.0,2.07518998]
[1747015659130,0.0292847,104160.0,104150.0,2.07518998]
[1747015659334,0.03888531,104160.0,104150.0,2.07518998]
[1747015659537,0.0292847,104160.0,104150.0,2.07518998]
[1747015659742,0.03888531,104160.0,104150.0,2.07518998]
[1747015660318,0.00048407,104160.0,104150.0,2.07518998]
[1747015660523,0.01968391,104160.0,104150.0,2.07518998]
[1747015661408,0.01008385,104160.0,104150.0,2.07518998]
[1747015661951,0.01968381,104160.0,104150.0,2.07518998]
[1747015664606,0.01008385,104160.0,104150.0,2.07518998]
[1747015665072,0.01968381,104160.0,104150.0,2.07518998]
[1747015666581,0.01008385,104160.0,104150.0,2.07518998]
[1747015667292,0.01968381,104160.0,104150.0,2.07518998]
[1747015667498,0.23089685,104160.0,104150.0,1.54521369]
[1747015667728,0.23089685,104160.0,104150.0,1.80850344]
[1747015667729,0.06448518,104160.0,104150.0,1.80850344]
[1747015667954,0.24689768,104160.0,104150.0,1.79890246]
[1747015668386,0.0548854,104160.0,104150.0,1.80850344]
[1747015669000,0.0548854,104160.0,104150.0,1.54781001]
[1747015669614,0.24689768,104160.0,104150.0,1.53820903]
[1747015670719,0.02928544,104160.0,104150.0,1.53820903]
[1747015670929,0.02928544,104160.0,104150.0,1.79189762]
[1747015671148,0.02928544,104160.0,104150.0,2.12229673]
[1747015671550,0.21169748,104160.0,104150.0,2.09349325]
[1747015671793,0.21169748,104160.0,104150.0,1.86860815]
[1747015672005,0.21169748,104160.0,104150.0,2.12229701]
[1747015672628,0.21169748,104160.0,104150.0,1.87820931]
[1747015673036,0.01968474,104160.0,104150.0,1.8878102]
[1747015673238,0.03888531,104160.0,104150.0,1.8878102]
[1747015673496,0.23089759,104160.0,104150.0,1.87820931]
[1747015673710,0.23089759,104160.0,104150.0,1.88781038]
[1747015674115,0.23089759,104160.0,104150.0,1.68977654]
[1747015674300,0.23089759,104160.0,104150.0,1.44806868]
[1747015674529,0.24739759,104160.0,104150.0,1.45766984]
[1747015675033,0.24739759,104160.0,104150.0,1.46727091]
[1747015677269,0.23779763,104160.0,104150.0,1.20398098]
[1747015677510,0.23779763,104160.0,104150.0,1.52315134]
[1747015677746,0.23519696,104160.0,104150.0,0.92569798]
[1747015677962,0.35235696,104160.0,104150.0,1.35335263]
[1747015678360,0.35235696,104160.0,104150.0,1.19376745]
[1747015678571,0.35235696,104160.0,104150.0,1.35335263]
[1747015680372,0.20209696,104160.0,104150.0,1.68576516]
[1747015680619,0.23089787,104160.0,104150.0,1.68576516]
[1747015681057,0.21169748,104160.0,104150.0,1.68576516]
[1747015681283,0.20209696,104160.0,104150.0,1.68576535]
[1747015681497,0.19249635,104160.0,104150.0,1.60976062]
[1747015682397,0.19249635,104160.0,104150.0,1.61936197]
[1747015683061,0.19249635,104160.0,104150.0,1.60976062]
[1747015683322,0.20809635,104160.0,104150.0,1.43693308]
[1747015683527,0.22459635,104160.0,104150.0,1.19376745]
[1747015683728,0.22459635,104160.0,104150.0,1.43693308]
[1747015684644,0.19204916,104140.0,104130.0,0.24316563]
[1747015684846,0.23377079,104130.0,104120.0,0.39883447]
[1747015685065,0.24337389,104130.0,104120.0,0.57255293]
[1747015685332,0.24337389,104130.0,104120.0,0.73582598]
[1747015685557,0.24337389,104130.0,104120.0,0.56294863]
[1747015685787,0.24337389,104130.0,104120.0,0.24516563]
[1747015686215,0.24337389,104130.0,104120.0,0.58516563]
[1747015686434,0.24337389,104130.0,104120.0,1.88748163]
[1747015686646,0.24337389,104130.0,104120.0,0.69713463]
[1747015686849,0.24337389,104130.0,104120.0,0.80199663]
[1747015687235,0.24337389,104130.0,104120.0,0.80299663]
[1747015688014,0.24337389,104130.0,104120.0,0.59047527]
[1747015688417,0.24337389,104130.0,104120.0,0.60007957]
[1747015688629,0.19204916,104140.0,104120.0,0.7729559]
[1747015688857,0.60924665,104150.0,104120.0,0.7729559]
[1747015688858,0.002,104150.0,104140.0,0.53204767]
[1747015689078,0.002,104150.0,104140.0,2.7201373]
[1747015689329,0.002,104150.0,104140.0,3.09155723]
[1747015690048,0.002,104150.0,104140.0,2.8483916]
[1747015690249,0.002,104150.0,104140.0,2.8493916]
[1747015690654,0.002,104150.0,104140.0,2.8503916]
[1747015694611,0.002,104150.0,104140.0,3.09355723]
[1747015696663,0.002,104150.0,104140.0,3.49355723]
[1747015697462,0.00048407,104160.0,104150.0,0.52242806]
[1747015697662,0.00048407,104160.0,104150.0,4.98076262]
[1747015697888,0.00048407,104160.0,104150.0,4.94816262]
[1747015698128,0.00048407,104160.0,104150.0,4.18476962]
[1747015698584,0.00048407,104160.0,104150.0,4.15722262]
[1747015698815,0.00048407,104160.0,104150.0,3.81809662]
[1747015699018,0.00048407,104160.0,104150.0,3.79430262]
[1747015701008,0.00048407,104160.0,104150.0,3.82620262]
[1747015702583,0.00048407,104160.0,104150.0,3.60700063]
[1747015702813,0.00048407,104160.0,104150.0,3.78942869]
[1747015703031,0.00048407,104160.0,104150.0,3.75752869]
[1747015703253,0.00048407,104160.0,104150.0,3.45430262]
[1747015703452,0.00048407,104160.0,104150.0,3.46930262]
[1747015703884,0.00048407,104160.0,104150.0,3.45430262]
[1747015705206,0.00048407,104160.0,104150.0,2.689689]
[1747015705207,0.03108407,104160.0,104150.0,2.689689]
[1747015705414,0.24229729,104160.0,104150.0,0.69615063]
[1747015705662,0.1920676,104130.0,104120.0,0.20850965]
[1747015705875,0.02880838,104130.0,104120.0,2.91497809]
[1747015706081,0.01920537,104130.0,104120.0,2.91497809]
[1747015706296,0.00960255,104130.0,104120.0,2.91497809]
[1747015706517,0.47159379,104130.0,104120.0,0.002]
[1747015706749,0.58678885,104130.0,104120.0,0.002]
[1747015706981,0.58678885,104130.0,104120.0,0.003]
[1747015708517,0.58978885,104130.0,104120.0,0.003]
[1747015708733,0.58978885,104130.0,104120.0,0.002]
[1747015708935,0.59278885,104130.0,104120.0,0.002]
[1747015709791,0.83595448,104130.0,104120.0,0.002]
[1747015710228,1.25115448,104130.0,104120.0,0.002]
[1747015711292,1.26115448,104130.0,104120.0,0.002]
[1747015711711,0.25705515,104110.0,104100.0,0.002]
[1747015711921,0.58682945,104110.0,104100.0,0.002]
[1747015713032,0.58992232,104110.0,104100.0,0.002]
[1747015714069,0.59192232,104110.0,104100.0,0.002]
[1747015715145,0.66186976,104100.0,104090.0,0.36799352]
[1747015715399,0.64138914,104090.0,104080.0,0.002]
[1747015715637,0.63124344,104090.0,104080.0,0.002]
[1747015715881,1.02394344,104090.0,104080.0,0.002]
[1747015716119,1.26710907,104090.0,104080.0,0.002]
[1747015716344,1.27170907,104090.0,104080.0,0.002]
[1747015716579,0.25773637,104070.0,104060.0,0.002]
[1747015716827,0.58759067,104070.0,104060.0,0.002]
[1747015717072,0.63629067,104070.0,104060.0,0.002]
[1747015717352,1.2294563,104070.0,104060.0,0.002]
[1747015717601,0.257677,104050.0,104040.0,0.002]
[1747015717836,1.0022913,104050.0,104040.0,0.102]
[1747015718073,1.0022913,104050.0,104040.0,0.00213958]
[1747015719209,1.0469913,104050.0,104040.0,0.00213958]
[1747015719665,1.0469913,104050.0,104040.0,0.00313958]
[1747015720599,1.0469913,104050.0,104040.0,0.00413958]
[1747015720600,1.0956913,104050.0,104040.0,0.00413958]
[1747015720822,0.9786913,104050.0,104040.0,0.00413958]
[1747015721048,1.0956913,104050.0,104040.0,0.00413958]
[1747015721978,0.8616913,104050.0,104040.0,0.00413958]
[1747015722213,1.0957713,104050.0,104040.0,0.00413958]
[1747015722678,0.8616913,104050.0,104040.0,0.00413958]
[1747015722892,1.0799713,104050.0,104040.0,0.24730521]
[1747015723109,1.0799713,104050.0,104040.0,0.00413958]
[1747015724476,1.0956713,104050.0,104040.0,0.00413958]
[1747015729871,1.0640713,104050.0,104040.0,0.00413958]
[1747015730322,0.9470313,104050.0,104040.0,0.58730521]
[1747015730542,0.95363615,104050.0,104040.0,1.12410621]
[1747015730754,0.95367615,104050.0,104040.0,1.36727184]
[1747015730987,0.95367615,104050.0,104040.0,1.53656663]
[1747015731213,0.53891615,104050.0,104040.0,1.79513226]
[1747015731424,0.52930585,104050.0,104040.0,1.79513226]
[1747015731666,0.20182585,104050.0,104040.0,1.96814216]
[1747015731865,0.23065758,104050.0,104040.0,1.95853085]
[1747015732085,0.21143671,104050.0,104040.0,1.79513226]
[1747015732305,0.21143671,104050.0,104040.0,1.45654263]
[1747015732566,0.21143671,104050.0,104040.0,1.69970826]
[1747015733013,0.21143671,104050.0,104040.0,1.71470826]
[1747015733311,0.21143671,104050.0,104040.0,1.79470826]
[1747015733779,0.21143671,104050.0,104040.0,1.96771853]
[1747015733993,0.20182604,104050.0,104040.0,1.80431994]
[1747015734425,0.20182604,104050.0,104040.0,1.79470826]
[1747015735298,0.20182604,104050.0,104040.0,1.71470826]
[1747015735906,0.20182604,104050.0,104040.0,1.89370676]
[1747015736116,0.20182604,104050.0,104040.0,1.08714263]
[1747015736540,0.20182604,104050.0,104040.0,1.33030826]
[1747015737510,0.20182604,104050.0,104040.0,1.48409526]
[1747015737738,0.20182604,104050.0,104040.0,1.33030826]
[1747015737896,0.20182604,104050.0,104040.0,1.33991994]
[1747015738105,0.19221528,104050.0,104040.0,1.33991994]
[1747015738349,0.19221528,104050.0,104040.0,1.41991994]
[1747015739122,0.19221528,104050.0,104040.0,1.41030826]
[1747015740397,0.19221528,104050.0,104040.0,1.41991994]
[1747015740826,0.19221528,104050.0,104040.0,1.41030826]
[1747015741437,0.19221528,104050.0,104040.0,1.07030826]
[1747015742980,0.19221528,104050.0,104040.0,1.07991994]
[1747015743369,0.19221528,104050.0,104040.0,1.41991994]
[1747015744178,0.19221528,104050.0,104040.0,1.59293003]
[1747015744395,0.19221528,104050.0,104040.0,1.42953153]
[1747015744636,0.19221528,104050.0,104040.0,1.41030826]
[1747015745728,0.19221528,104050.0,104040.0,1.42500372]
[1747015746806,0.19221528,104050.0,104040.0,1.57879072]
[1747015747038,0.19221528,104050.0,104040.0,1.42500372]
[1747015747731,0.3091723,104060.0,104050.0,0.16338279]
[1747015747956,0.01160836,104070.0,104060.0,0.50336728]
[1747015748163,0.02882535,104070.0,104060.0,4.29042894]
[1747015748373,0.02882498,104070.0,104060.0,4.03311094]
[1747015748574,0.0288247,104070.0,104060.0,4.03311094]
[1747015748783,0.01160642,104090.0,104080.0,0.51294323]
[1747015749008,0.03081991,104090.0,104080.0,3.64443983]
[1747015749237,0.01160642,104090.0,104080.0,3.56765683]
[1747015749443,0.02121275,104090.0,104080.0,3.56765683]
[1747015749653,0.2133158,104110.0,104100.0,0.50330432]
[1747015749867,0.21346089,104110.0,104100.0,3.55865762]
[1747015750082,0.21346089,104110.0,104100.0,3.00273726]
[1747015750298,0.21346089,104110.0,104100.0,1.40881026]
[1747015750502,0.21346089,104110.0,104100.0,1.35616454]
[1747015750710,0.21346089,104110.0,104100.0,1.36577068]
[1747015750922,0.21346089,104110.0,104100.0,1.37537673]
[1747015751125,0.21346089,104110.0,104100.0,1.52907509]
[1747015751350,0.21346089,104110.0,104100.0,1.53868105]
[1747015751576,0.21346089,104110.0,104100.0,1.56488682]
[1747015751792,0.21346089,104110.0,104100.0,1.35616454]
[1747015752010,0.20385585,104110.0,104100.0,1.33139326]
[1747015752221,0.20385585,104110.0,104100.0,0.58316563]
[1747015752222,0.22495585,104110.0,104100.0,0.58316563]
[1747015752434,0.20174829,104090.0,104080.0,0.27198963]
[1747015752657,0.20174829,104090.0,104080.0,0.028824]
[1747015752658,0.43759323,104090.0,104080.0,0.028824]
[1747015752874,0.20176767,104080.0,104070.0,0.24316563]
[1747015753091,0.20178707,104070.0,104060.0,0.27399463]
[1747015753296,0.20178707,104070.0,104060.0,0.81125763]
[1747015753504,0.31870707,104070.0,104060.0,0.47125763]
[1747015753926,0.31870707,104070.0,104060.0,0.81125763]
[1747015754585,0.31870707,104070.0,104060.0,0.81225763]
[1747015755225,0.31870707,104070.0,104060.0,0.81425763]
[1747015755956,0.31870707,104070.0,104060.0,0.75418163]
[1747015756184,0.31870707,104070.0,104060.0,0.69732163]
[1747015756422,0.56332137,104070.0,104060.0,0.345]
[1747015756650,0.56332137,104070.0,104060.0,0.58816563]
[1747015756864,0.54682137,104070.0,104060.0,0.24816563]
[1747015757079,0.56322137,104070.0,104060.0,0.005]
[1747015757315,0.56322137,104070.0,104060.0,0.24716563]
[1747015757533,0.56322137,104070.0,104060.0,0.24916563]
[1747015758196,0.56322137,104070.0,104060.0,0.24716563]
[1747015758633,0.56322137,104070.0,104060.0,0.24816563]
[1747015762004,0.56322137,104070.0,104060.0,0.005]
[1747015762254,0.56322137,104070.0,104060.0,0.24816563]
[1747015762460,0.53152137,104070.0,104060.0,0.24816563]
[1747015763334,0.54812137,104070.0,104060.0,0.24816563]
[1747015764210,0.54812137,104070.0,104060.0,0.58816563]
[1747015766113,0.53152137,104070.0,104060.0,0.58816563]
[1747015766371,0.26266573,104070.0,104060.0,1.9687201]
[1747015766585,0.28555987,104080.0,104060.0,1.97521036]
[1747015766811,0.1222224,104080.0,104070.0,1.04950811]
[1747015767021,0.03843002,104080.0,104070.0,1.04950811]
[1747015767226,0.04803792,104080.0,104070.0,1.04950811]
[1747015767381,0.23059054,104080.0,104070.0,1.03990002]
[1747015767581,0.2209831,104080.0,104070.0,1.03029148]
[1747015767784,0.21137557,104080.0,104070.0,1.03990002]
[1747015768688,0.21137557,104080.0,104070.0,0.85733126]
[1747015768689,0.20276777,104080.0,104070.0,0.85733126]
[1747015768918,0.19315987,104080.0,104070.0,0.58316563]
[1747015769133,0.20178707,104070.0,104060.0,0.002]
[1747015769349,0.32059201,104070.0,104060.0,0.002]
[1747015769556,0.31866707,104070.0,104060.0,0.58516563]
[1747015769783,0.31866707,104070.0,104060.0,0.24516563]
[1747015770002,0.31866707,104070.0,104060.0,0.58516563]
[1747015770433,0.31866707,104070.0,104060.0,0.58616563]
[1747015770919,0.31866707,104070.0,104060.0,0.58716563]
[1747015771744,0.43072137,104070.0,104060.0,0.344]
[1747015771953,0.43072137,104070.0,104060.0,0.004]
[1747015772160,0.44662137,104070.0,104060.0,0.344]
[1747015772389,0.20180645,104060.0,104050.0,0.24316563]
[1747015772594,0.19412174,104060.0,104050.0,0.24331077]
[1747015772796,0.19412174,104060.0,104050.0,0.00014514]
[1747015773002,0.3090768,104060.0,104050.0,0.24331077]
[1747015773461,0.3090768,104060.0,104050.0,0.24531077]
[1747015774100,0.3090768,104060.0,104050.0,0.24731077]
[1747015774991,0.3090768,104060.0,104050.0,0.58731077]
[1747015775186,0.30898729,104060.0,104050.0,0.58731077]
[1747015777242,0.30898729,104060.0,104050.0,0.24316563]
[1747015779942,0.20182595,104050.0,104040.0,0.01627119]
[1747015780142,0.20182595,104050.0,104040.0,0.25943682]
[1747015780378,0.20375089,104050.0,104040.0,0.66600095]
[1747015780610,0.13624413,104060.0,104050.0,0.21440339]
[1747015780826,0.00014501,104060.0,104050.0,0.71034541]
[1747015781050,0.26258249,104080.0,104070.0,0.1825683]
[1747015781302,0.11688,104080.0,104070.0,1.3787172]
[1747015781520,0.33984465,104090.0,104080.0,0.18864323]
[1747015781731,0.33984465,104090.0,104080.0,0.42220133]
[1747015781939,0.33023795,104090.0,104080.0,0.42220133]
[1747015782170,0.31102391,104090.0,104080.0,0.24316563]
[1747015783229,0.31102391,104090.0,104080.0,0.59277362]
[1747015783621,0.31302391,104090.0,104080.0,0.74650152]
[1747015783811,0.31502391,104090.0,104080.0,0.76571722]
[1747015784012,0.31502391,104090.0,104080.0,0.79182484]
[1747015784207,0.31502391,104090.0,104080.0,0.79741722]
[1747015784553,0.31502391,104090.0,104080.0,0.61486563]
[1747015784768,0.31502391,104090.0,104080.0,0.59966563]
[1747015785502,0.31502391,104090.0,104080.0,0.58316563]
[1747015785952,0.31502391,104090.0,104080.0,0.77260923]
[1747015786669,0.31502391,104090.0,104080.0,1.69254782]
[1747015786670,0.006,104090.0,104080.0,1.69254782]
[1747015786890,0.006,104090.0,104080.0,1.78840212]
[1747015787505,0.004,104090.0,104080.0,1.78840212]
[1747015787707,0.02321266,104090.0,104080.0,1.78840212]
[1747015787934,0.004,104090.0,104080.0,1.78840212]
[1747015788367,0.004,104090.0,104080.0,1.86840212]
[1747015788581,0.01160624,104090.0,104080.0,1.86840212]
[1747015788796,0.002,104090.0,104080.0,1.86940212]
[1747015789062,0.2548898,104110.0,104100.0,0.52251568]
[1747015789286,0.25503508,104110.0,104100.0,1.04154694]
[1747015789511,0.26464021,104110.0,104100.0,1.04154694]
[1747015789769,0.01174967,104110.0,104100.0,1.77077794]
[1747015789991,0.00214528,104110.0,104100.0,1.86663224]
[1747015790406,0.00814528,104110.0,104100.0,2.26763224]
[1747015790690,0.00514528,104110.0,104100.0,2.26663224]
[1747015790914,0.44695352,104130.0,104120.0,0.51287698]
[1747015791140,0.43735079,104130.0,104120.0,0.58316563]
[1747015791364,0.43735079,104130.0,104120.0,0.74643868]
[1747015791605,0.26448938,104130.0,104120.0,0.75604261]
[1747015791837,0.03080874,104130.0,104120.0,1.31705389]
[1747015792350,0.03080874,104130.0,104120.0,1.71705389]
[1747015792778,0.02320555,104130.0,104120.0,1.71705389]
[1747015792999,0.03280865,104130.0,104120.0,1.71805389]
[1747015793205,0.03580865,104130.0,104120.0,1.73275548]
[1747015793425,0.03580865,104130.0,104120.0,1.73175548]
[1747015793677,0.03780865,104130.0,104120.0,1.73175548]
[1747015793880,0.03480874,104130.0,104120.0,1.73175548]
[1747015794126,0.03480865,104130.0,104120.0,1.73175548]
[1747015794457,0.04241184,104130.0,104120.0,1.73175548]
[1747015794678,0.01360264,104130.0,104120.0,1.73175548]
[1747015794900,0.004,104130.0,104120.0,1.42860978]
[1747015795348,0.01360273,104130.0,104120.0,1.81390819]
[1747015795549,0.02320555,104130.0,104120.0,1.81390819]
[1747015795769,0.02320555,104130.0,104120.0,1.41390819]
[1747015795770,0.03280856,104130.0,104120.0,1.41390819]
[1747015796392,0.03280856,104130.0,104120.0,1.81390819]
[1747015797271,0.04241166,104130.0,104120.0,1.84271819]
[1747015798751,0.03280856,104130.0,104120.0,1.84271819]
[1747015798952,0.03280856,104130.0,104120.0,1.88731819]
[1747015799580,0.03280856,104130.0,104120.0,1.69108326]
[1747015800078,0.03280856,104130.0,104120.0,1.54731819]
[1747015800744,0.02320555,104130.0,104120.0,1.54731819]
[1747015800961,0.004,104130.0,104120.0,1.54731819]
[1747015801218,0.01920343,104140.0,104130.0,0.2139631]
[1747015801425,0.03840778,104140.0,104130.0,1.86789236]
[1747015801604,0.03840778,104140.0,104130.0,2.00692236]
[1747015801960,0.04801014,104140.0,104130.0,2.00692236]
[1747015802166,0.23050609,104140.0,104130.0,1.53285763]
[1747015802371,0.23050609,104140.0,104130.0,0.99919163]
[1747015802372,0.22190428,104140.0,104130.0,0.99919163]
[1747015802685,0.2123022,104140.0,104130.0,0.99919172]
[1747015802890,0.2123022,104140.0,104130.0,1.27103473]
[1747015803097,0.2123022,104140.0,104130.0,1.23339573]
[1747015803290,0.2133022,104140.0,104130.0,1.24299855]
[1747015803484,0.01165003,104140.0,104130.0,1.38035558]
[1747015803698,0.02125175,104140.0,104130.0,1.38035558]
[1747015804298,0.03085356,104140.0,104130.0,1.38035558]
[1747015804503,0.02885356,104140.0,104130.0,1.38035558]
[1747015804734,0.02885356,104140.0,104130.0,1.38635558]
[1747015805110,0.02885356,104140.0,104130.0,1.43095558]
[1747015805322,0.01925175,104140.0,104130.0,1.43095558]
[1747015805737,0.00960172,104140.0,104130.0,1.43095558]
[1747015806220,0.01160116,104150.0,104140.0,0.51284377]
[1747015806428,0.02120205,104150.0,104140.0,0.76561139]
[1747015806655,0.02120205,104150.0,104140.0,0.7752132]
[1747015807324,0.02120205,104150.0,104140.0,0.7762132]
[1747015807539,0.02120205,104150.0,104140.0,0.7772132]
[1747015808106,0.0308034,104150.0,104140.0,0.7772132]